bitfinex-derivatives/quotes_SOLF0:USTF0_20241231
["timestamp","ask_amount","ask_price","bid_price","bid_amount"]
[1735668055882,12.50114678,195.96,195.89,2.5561]
[1735668057478,2.5557,195.92,195.89,2.5561]
[1735668058081,12.50114678,195.96,195.84,12.50114678]
[1735668058279,2.5558,195.92,195.88,2.5562]
[1735668058478,14.08994678,195.96,195.88,2.5562]
[1735668058978,2.5555,195.94,195.88,2.5562]
[1735668059278,14.08994678,195.96,195.88,2.5562]
[1735668059575,14.08994678,195.96,195.87,3.68]
[1735668060480,12.50114678,195.93,195.83,3.68]
[1735668060780,2.5568,195.84,195.8,2.5572]
[1735668060989,2.5568,195.84,195.81,3.68]
[1735668061385,12.50114678,195.93,195.81,3.68]
[1735668061585,24.11560465,195.96,195.82,12.50114678]
[1735668061779,24.11560465,195.96,195.85,12.50114678]
[1735668061986,2.5556,195.93,195.85,12.50114678]
[1735668062482,1.5888,195.96,195.88,12.50114678]
[1735668062679,12.50114678,196.02,195.91,12.50114678]
[1735668062882,16.88844678,196.05,195.92,3.66]
[1735668063079,4.3873,196.05,195.94,12.50114678]
[1735668064390,4.3873,196.05,195.97,2.555]
[1735668064592,4.3873,196.05,195.98,3.66]
[1735668065692,2.5544,196.02,195.98,6.2149]
[1735668066789,2.5542,196.04,195.98,3.66]
[1735668066994,1.4627,196.1,195.98,3.66]
[1735668067593,1.4627,196.1,196.0,2.5546]
[1735668069494,1.4627,196.1,196.01,2.5545]
[1735668069697,1.4627,196.1,195.98,3.66]
[1735668070296,2.554,196.06,195.98,3.66]
[1735668071400,2.554,196.06,196.01,2.5544]
[1735668071797,28.3227371,196.22,196.03,12.50114678]
[1735668071998,29.8808371,196.22,196.1,12.50114678]
[1735668072300,2.5527,196.16,196.11,3.66]
[1735668072501,12.50114678,196.17,196.11,3.66]
[1735668073097,12.50114678,196.17,196.08,3.66]
[1735668073296,12.50114678,196.14,196.08,3.66]
[1735668073706,12.50114678,196.11,195.99,28.3227371]
[1735668074005,12.50114678,196.08,196.0,3.66]
[1735668074598,12.50114678,196.08,195.98,3.66]
[1735668075204,2.5546,196.01,195.98,3.66]
[1735668076699,1.5381,196.07,195.98,3.66]
[1735668077506,2.5542,196.04,195.98,16.16114678]
[1735668077808,1.5381,196.07,195.98,16.16114678]
[1735668077995,2.5544,196.03,195.98,18.71604678]
[1735668078502,2.5548,195.99,195.98,3.66]
[1735668078701,2.5548,195.99,195.97,3.66]
[1735668078904,1.5381,196.07,195.97,3.66]
[1735668079104,1.5381,196.07,195.97,6.215]
[1735668079603,2.5545,196.02,195.97,3.66]
[1735668079804,12.50114678,196.11,195.98,12.50114678]
[1735668079998,10.03480985,196.12,195.98,12.50114678]
[1735668080204,12.50114678,196.14,196.01,12.50114678]
[1735668080406,12.50114678,196.14,196.01,15.05564678]
[1735668080804,2.5534,196.11,196.01,12.50114678]
[1735668081009,12.50114678,196.14,196.01,12.50114678]
[1735668081599,2.554,196.06,196.01,15.05564678]
[1735668082809,12.50114678,196.11,196.0,2.5547]
[1735668083003,12.50114678,196.11,195.97,3.66]
[1735668083198,2.5547,196.0,195.98,3.66]
[1735668083403,12.50114678,196.05,195.97,3.66]
[1735668083707,12.50114678,196.05,195.92,10.06658427]
[1735668083908,12.50114678,196.02,195.92,7.08068427]
[1735668084110,12.50114678,195.99,195.91,3.66]
[1735668084408,2.5556,195.94,195.91,3.66]
[1735668084615,12.50114678,195.99,195.91,3.66]
[1735668085004,1.2783753,195.98,195.91,3.66]
[1735668085199,12.50114678,195.99,195.91,3.66]
[1735668085200,1.27831915,195.97,195.91,3.66]
[1735668085509,2.5554,195.95,195.91,6.2158]
[1735668085702,1.27831915,195.94,195.91,3.66]
[1735668085903,12.50114678,195.99,195.91,3.66]
[1735668086105,1.27826981,195.98,195.91,3.66]
[1735668086309,1.27826981,195.97,195.91,3.66]
[1735668086609,1.27826981,195.96,195.91,3.66]
[1735668086814,1.27826981,195.95,195.91,3.66]
[1735668087103,12.50114678,195.99,195.91,3.66]
[1735668087310,1.27822401,195.98,195.91,3.66]
[1735668087501,2.5554,195.95,195.91,6.2158]
[1735668088412,4.5869,196.01,195.91,3.66]
[1735668088607,2.5551,195.98,195.91,16.16114678]
[1735668088807,1.27822816,195.97,195.91,16.16114678]
[1735668089101,1.27822816,195.96,195.91,16.16114678]
[1735668089310,4.5869,196.01,195.91,16.16114678]
[1735668089510,1.27818152,196.0,195.94,2.5555]
[1735668089706,1.27818152,195.99,195.91,16.16114678]
[1735668089911,1.27818152,195.98,195.91,16.16114678]
[1735668090113,2.5549,195.98,195.94,2.5553]
[1735668090410,4.5869,196.01,195.94,2.5553]
[1735668090611,1.27800205,196.0,195.94,2.5553]
[1735668090814,1.27800205,195.99,195.94,2.5553]
[1735668091002,4.5869,196.01,195.94,2.5553]
[1735668091207,2.555,195.98,195.94,2.5553]
[1735668092010,12.50114678,196.06,195.95,3.66]
[1735668092215,2.74142222,196.05,195.95,3.66]
[1735668092509,1.27802222,196.04,195.97,12.50114678]
[1735668092703,1.27802222,196.03,195.97,12.50114678]
[1735668092908,1.27802222,196.02,195.97,12.50114678]
[1735668093109,13.96454678,196.15,196.0,12.50114678]
[1735668093312,4.2116717,196.14,196.03,12.50114678]
[1735668093614,1.2777717,196.13,196.04,3.66]
[1735668093815,1.2777717,196.12,196.04,3.66]
[1735668094123,1.2777717,196.11,196.04,3.66]
[1735668094308,1.2777717,196.1,196.04,3.66]
[1735668094504,2.9339,196.14,196.04,3.66]
[1735668094711,2.5537,196.08,196.04,6.214]
[1735668095009,2.9339,196.14,196.04,6.214]
[1735668095206,1.27732276,196.13,196.04,3.66]
[1735668095513,1.27732276,196.12,196.04,3.66]
[1735668095808,1.27732276,196.11,196.05,12.50114678]
[1735668096002,1.27732276,196.1,196.05,12.50114678]
[1735668096202,2.553,196.13,196.05,12.50114678]
[1735668096406,1.2772229,196.12,196.05,12.50114678]
[1735668096613,2.9375,196.2,196.08,12.50114678]
[1735668097014,1.27708635,196.19,196.08,12.50114678]
[1735668097311,1.27708635,196.18,196.11,2.5532]
[1735668097513,1.27708635,196.17,196.12,3.66]
[1735668097711,1.27708635,196.16,196.12,3.66]
[1735668097910,1.27708635,196.15,196.12,3.66]
[1735668098212,1.27708635,196.14,196.12,3.66]
[1735668098414,12.50114678,196.18,196.12,3.66]
[1735668098611,2.72105519,196.17,196.12,3.66]
[1735668098816,2.553,196.13,196.12,3.66]
[1735668099719,2.5528,196.15,196.12,3.66]
[1735668100016,1.27700733,196.14,196.12,3.66]
[1735668100315,1.27705823,196.13,196.12,3.66]
[1735668100511,1.27705823,196.13,196.06,3.66]
[1735668100707,12.50114678,196.15,196.02,12.50114678]
[1735668100708,1.27705823,196.12,196.02,12.50114678]
[1735668100912,1.27705823,196.11,196.03,3.66]
[1735668101107,1.27705823,196.1,196.04,2.5541]
[1735668101315,12.50114678,196.15,196.03,3.66]
[1735668101617,2.5535,196.09,196.05,2.554]
[1735668101813,1.444,196.17,196.03,3.66]
[1735668102013,1.2772606,196.16,196.03,3.66]
[1735668102313,1.2772606,196.15,196.05,12.50114678]
[1735668102519,60.20068427,196.26,196.08,12.50114678]
[1735668102520,1.2772606,196.14,196.08,12.50114678]
[1735668102715,1.27701312,196.13,196.12,2.5531]
[1735668102909,2.5523,196.18,196.09,3.66]
[1735668103120,1.27697327,196.17,196.09,3.66]
[1735668103315,1.27697343,196.16,196.13,2.5529]
[1735668103512,1.27697343,196.15,196.13,2.5529]
[1735668103714,2.5523,196.18,196.13,2.5529]
[1735668103910,1.27677916,196.17,196.11,12.50114678]
[1735668104217,1.5284,196.25,196.11,12.50114678]
[1735668104415,2.5522,196.2,196.15,2.5527]
[1735668104612,1.27667898,196.19,196.16,3.66]
[1735668104915,2.5522,196.19,196.16,3.66]
[1735668105517,3.82896969,196.18,196.16,3.66]
[1735668105819,2.5523,196.18,196.16,3.66]
[1735668107915,1.5284,196.25,196.17,2.5524]
[1735668108125,1.27665806,196.24,196.16,3.66]
[1735668108323,1.27665806,196.23,196.16,3.66]
[1735668108511,3.82855806,196.22,196.16,3.66]
[1735668108711,19.99258032,196.34,196.17,19.99258032]
[1735668108913,3.16492741,196.33,196.2,19.99258032]
[1735668109215,3.0502,196.33,196.23,19.99258032]
[1735668109419,1.5403,196.36,196.24,3.66]
[1735668109619,1.5403,196.36,196.26,19.99258032]
[1735668109819,1.5403,196.36,196.3,2.5507]
[1735668110014,1.5403,196.36,196.31,3.66]
[1735668110219,2.55,196.36,196.31,3.66]
[1735668110523,1.4925,196.38,196.31,3.66]
[1735668111415,2.55,196.36,196.31,6.2105]
[1735668112214,1.5403,196.41,196.31,3.66]
[1735668112417,1.4504,196.49,196.36,19.99258032]
[1735668112624,1.4504,196.49,196.37,3.66]
[1735668112820,2.5489,196.45,196.38,2.5496]
[1735668113023,1.4504,196.49,196.37,3.66]
[1735668113216,1.4504,196.49,196.39,19.99258032]
[1735668113621,1.4988,196.52,196.42,2.5492]
[1735668113822,1.4988,196.52,196.43,3.66]
[1735668114420,2.5486,196.47,196.43,3.66]
[1735668115121,2.5487,196.46,196.43,3.66]
[1735668115524,1.5833,196.55,196.43,3.66]
[1735668115720,19.99258032,196.53,196.38,3.0685]
[1735668115927,19.99258032,196.53,196.41,3.66]
[1735668116223,2.549,196.44,196.41,3.66]
[1735668116424,2.549,196.44,196.41,10.75]
[1735668116625,2.549,196.44,196.41,16.17]
[1735668117722,1.5833,196.55,196.41,12.51]
[1735668117723,19.99258032,196.5,196.41,12.51]
[1735668117921,2.5492,196.42,196.41,12.51]
[1735668118116,19.99258032,196.47,196.37,3.66]
[1735668118326,1.5965,196.46,196.37,3.66]
[1735668119327,1.5965,196.46,196.37,0.92]
[1735668119524,2.5497,196.38,196.37,0.92]
[1735668120926,3.82523851,196.38,196.37,0.92]
[1735668121324,3.82532758,196.38,196.37,0.92]
[1735668121727,1.27562758,196.38,196.31,3.66]
[1735668121929,1.27562758,196.37,196.26,2.9841]
[1735668122233,19.99258032,196.4,196.27,6.1911]
[1735668122234,1.27562758,196.36,196.27,6.1911]
[1735668122528,2.5505,196.33,196.27,3.64]
[1735668122734,2.5505,196.33,196.28,2.551]
[1735668123024,1.5965,196.46,196.28,19.99258032]
[1735668123331,2.8271971,196.45,196.36,2.5499]
[1735668123628,1.2755971,196.44,196.37,3.64]
[1735668123827,1.2755971,196.43,196.31,3.64]
[1735668124021,1.2755971,196.42,196.31,3.64]
[1735668124831,1.2755971,196.42,196.26,2.9841]
[1735668125032,2.5505,196.32,196.27,3.64]
[1735668125232,1.574,196.43,196.27,3.64]
[1735668125534,2.5504,196.34,196.28,2.551]
[1735668125930,2.5504,196.33,196.28,2.551]
[1735668126230,1.574,196.43,196.29,2.5509]
[1735668126530,1.27573075,196.42,196.29,2.5509]
[1735668126736,1.574,196.43,196.29,2.5509]
[1735668126925,1.574,196.43,196.31,2.5506]
[1735668127435,5.214,196.43,196.31,2.5506]
[1735668127736,2.5501,196.36,196.31,2.5506]
[1735668128037,5.214,196.43,196.27,3.64]
[1735668128332,2.5496,196.39,196.29,19.99258032]
[1735668128526,1.5516,196.45,196.33,19.99258032]
[1735668128730,1.5516,196.45,196.36,2.55]
[1735668129135,2.5492,196.43,196.34,3.64]
[1735668129428,1.5403,196.49,196.34,3.64]
[1735668129625,3.1077,196.49,196.34,3.64]
[1735668129827,3.1077,196.49,196.39,2.5495]
[1735668129828,2.5489,196.45,196.39,2.5495]
[1735668130027,3.1077,196.49,196.35,1.5338]
[1735668130234,3.1077,196.49,196.35,3.068]
[1735668130434,2.5491,196.44,196.35,3.068]
[1735668130635,2.5491,196.44,196.36,1.5462]
[1735668130831,3.1077,196.49,196.36,1.5462]
[1735668131037,2.5488,196.45,196.4,2.5493]
[1735668131235,1.4865,196.53,196.41,3.64]
[1735668131434,2.5482,196.51,196.47,2.5485]
[1735668131630,2.5482,196.51,196.48,3.64]
[1735668132230,2.5482,196.5,196.48,3.64]
[1735668132535,19.99258032,196.56,196.45,3.64]
[1735668132737,1.2747765,196.55,196.45,3.64]
[1735668132936,23.63258032,196.56,196.45,3.64]
[1735668132937,1.2747765,196.54,196.45,3.64]
[1735668133139,19.99258032,196.56,196.45,3.64]
[1735668133435,2.5482,196.5,196.46,2.5486]
[1735668133643,19.99258032,196.56,196.45,3.64]
[1735668133939,1.27485103,196.55,196.45,3.64]
[1735668134149,2.5486,196.47,196.45,3.64]
[1735668134339,19.99258032,196.56,196.45,3.64]
[1735668134539,2.548,196.51,196.46,2.5486]
[1735668134744,4.585,196.59,196.45,3.64]
[1735668135047,1.2746389,196.58,196.45,3.64]
[1735668135253,2.5481,196.51,196.46,2.5486]
[1735668136254,2.5481,196.51,196.47,2.5485]
[1735668136556,4.585,196.59,196.45,3.64]
[1735668136749,1.27461967,196.58,196.45,3.64]
[1735668136949,1.27461967,196.57,196.49,2.5483]
[1735668137149,1.27461967,196.56,196.45,3.64]
[1735668137351,1.27461967,196.55,196.45,23.63258032]
[1735668137549,1.27461967,196.54,196.46,1.501]
[1735668137850,19.99258032,196.64,196.46,4.5593]
[1735668138052,1.27455919,196.63,196.46,4.5593]
[1735668138247,2.5472,196.58,196.49,2.5482]
[1735668138446,1.27455919,196.57,196.46,4.5593]
[1735668138651,1.27455919,196.56,196.46,4.5593]
[1735668138856,2.5477,196.54,196.46,4.5593]
[1735668139655,19.99258032,196.6,196.46,4.5593]
[1735668139854,1.27458577,196.59,196.46,4.5593]
[1735668140256,1.27458577,196.59,196.46,5.5841]
[1735668140450,3.0379,196.58,196.46,5.5841]
[1735668140670,1.27458577,196.57,196.46,5.5841]
[1735668140958,2.86888577,196.57,196.46,5.5841]
[1735668141162,1.27458577,196.56,196.46,5.5841]
[1735668141659,2.5481,196.51,196.47,6.1886]
[1735668142656,1.5943,196.57,196.49,2.5482]
[1735668142858,1.27459035,196.56,196.47,3.64]
[1735668143063,1.27459035,196.55,196.47,3.64]
[1735668143356,2.5484,196.49,196.46,1.501]
[1735668143560,1.5943,196.57,196.47,3.64]
[1735668143963,1.27465463,196.56,196.47,3.64]
[1735668144159,2.5483,196.49,196.47,3.64]
[1735668144353,21.58688032,196.57,196.44,3.64]
[1735668144556,19.99258032,196.54,196.41,3.64]
[1735668144754,1.27478014,196.53,196.41,3.64]
[1735668144953,2.5489,196.45,196.41,6.1892]
[1735668145160,19.99258032,196.54,196.41,3.64]
[1735668145357,19.99258032,196.54,196.39,1.4614]
[1735668145358,19.99258032,196.51,196.38,1.449]
[1735668145555,2.5493,196.42,196.38,7.6386]
[1735668145766,2.5493,196.42,196.38,5.089]
[1735668146363,2.5491,196.44,196.38,25.08158032]
[1735668146556,1.4776,196.49,196.38,25.08158032]
[1735668146763,2.5492,196.43,196.38,7.6386]
[1735668146961,2.5492,196.43,196.38,5.089]
[1735668147567,1.27509105,196.42,196.38,5.089]
[1735668147757,2.5492,196.43,196.38,5.089]
[1735668147960,1.27509105,196.42,196.38,5.089]
[1735668148169,2.5492,196.43,196.38,5.089]
[1735668148468,1.27509193,196.42,196.39,6.1896]
[1735668148664,2.5492,196.43,196.39,6.1896]
[1735668148864,1.27509193,196.42,196.39,6.1896]
[1735668149166,2.5492,196.43,196.39,6.1896]
[1735668149363,1.27509967,196.42,196.41,2.5492]
[1735668149663,1.27508861,196.42,196.39,3.64]
[1735668149869,2.5488,196.46,196.42,2.5492]
[1735668150061,1.2750632,196.45,196.42,2.5492]
[1735668150264,1.2750623,196.44,196.39,3.64]
[1735668150565,1.2750623,196.43,196.42,2.5492]
[1735668150765,1.2750623,196.45,196.39,3.64]
[1735668150966,1.2750623,196.44,196.39,3.64]
[1735668151165,1.2750623,196.43,196.39,3.64]
[1735668151370,1.2750623,196.42,196.39,3.64]
[1735668151565,1.2750623,196.41,196.39,3.64]
[1735668151772,1.4776,196.49,196.4,2.5494]
[1735668152071,1.2751095,196.48,196.4,2.5494]
[1735668152268,2.549,196.44,196.4,2.5494]
[1735668152569,1.2751095,196.43,196.4,2.5494]
[1735668152775,1.2751095,196.42,196.4,2.5494]
[1735668152967,1.2751095,196.41,196.4,2.5494]
[1735668153368,1.2751095,196.41,196.39,6.1896]
[1735668153566,1.2751095,196.4,196.37,5.1318]
[1735668153766,1.2751095,196.39,196.37,5.1318]
[1735668153966,2.972,196.48,196.38,2.5497]
[1735668154163,1.2752694,196.47,196.38,2.5497]
[1735668154471,1.2752694,196.46,196.38,2.5497]
[1735668154676,1.2752694,196.45,196.38,2.5497]
[1735668154969,2.5493,196.41,196.37,5.1318]
[1735668155173,1.2752694,196.4,196.37,7.6817]
[1735668155375,1.2752694,196.39,196.35,19.99258032]
[1735668155567,2.55,196.36,196.33,3.0741]
[1735668155870,1.27548888,196.35,196.33,3.0741]
[1735668156167,1.27548888,196.34,196.28,3.64]
[1735668156468,1.27548888,196.33,196.28,3.64]
[1735668156671,1.27548888,196.32,196.28,3.64]
[1735668156873,1.27548888,196.31,196.28,3.64]
[1735668157074,2.5503,196.34,196.3,2.5508]
[1735668157375,1.27570078,196.33,196.3,2.5508]
[1735668157574,1.27570078,196.32,196.3,2.5508]
[1735668157762,1.27570078,196.31,196.3,2.5508]
[1735668157969,1.27570078,196.34,196.3,2.5508]
[1735668158174,1.27570078,196.33,196.3,2.5508]
[1735668158472,1.27570078,196.32,196.27,6.1911]
[1735668158669,1.27570078,196.31,196.27,6.1911]
[1735668158864,1.27570078,196.31,196.26,5.65]
[1735668159069,3.64,196.39,196.21,1.4637]
[1735668159070,1.27570078,196.3,196.21,1.4637]
[1735668159271,1.27570078,196.29,196.21,1.4637]
[1735668159575,1.27603827,196.28,196.22,2.5518]
[1735668159868,1.27603827,196.28,196.2,23.63258032]
[1735668159869,1.27603827,196.27,196.2,3.64]
[1735668160069,1.27603827,196.26,196.2,3.64]
[1735668160273,3.64,196.33,196.22,2.5518]
[1735668160476,1.27613953,196.32,196.22,2.5518]
[1735668160671,3.64,196.33,196.22,2.5518]
[1735668160672,2.5513,196.27,196.22,2.5518]
[1735668160872,1.27613953,196.26,196.22,2.5518]
[1735668161074,2.5513,196.27,196.22,2.5518]
[1735668161273,1.27613331,196.26,196.22,2.5518]
[1735668161468,2.5513,196.27,196.22,2.5518]
[1735668161672,3.64,196.33,196.2,6.1919]
[1735668161673,3.82743331,196.26,196.2,6.1919]
[1735668161878,2.5513,196.26,196.2,3.64]
[1735668162077,1.27626069,196.25,196.2,3.64]
[1735668162374,2.5513,196.26,196.19,3.64]
[1735668162567,1.27633334,196.25,196.19,3.64]
[1735668162769,2.5509,196.3,196.2,19.99258032]
[1735668162968,1.27610943,196.29,196.2,19.99258032]
[1735668163172,2.5505,196.32,196.27,2.551]
[1735668163370,1.27592677,196.31,196.25,3.64]
[1735668163582,2.5505,196.32,196.25,3.64]
[1735668163770,1.27597402,196.31,196.25,3.64]
[1735668163974,1.27599821,196.3,196.25,3.64]
[1735668164174,2.5505,196.32,196.25,3.64]
[1735668164577,1.27592243,196.31,196.27,2.551]
[1735668164774,2.5505,196.32,196.27,2.551]
[1735668164978,1.27592866,196.31,196.27,2.551]
[1735668165280,8.125,196.38,196.27,2.551]
[1735668165472,1.27594246,196.37,196.27,2.551]
[1735668165675,1.27594246,196.36,196.27,2.551]
[1735668165873,1.27594246,196.35,196.27,2.551]
[1735668166075,1.27594246,196.34,196.27,2.551]
[1735668166277,1.27594246,196.33,196.27,2.551]
[1735668166476,2.5507,196.31,196.27,2.551]
[1735668169278,1.4392,196.38,196.27,19.99258032]
[1735668169581,3.64,196.45,196.31,19.99258032]
[1735668169778,2.5496,196.39,196.34,2.5501]
[1735668169973,1.27558803,196.38,196.32,3.64]
[1735668170179,2.5496,196.39,196.32,3.64]
[1735668170579,2.5496,196.39,196.34,2.5502]
[1735668170778,2.5498,196.38,196.34,2.5502]
[1735668171179,19.99258032,196.46,196.36,2.5499]
[1735668171378,1.27537288,196.45,196.36,2.5499]
[1735668171573,2.5496,196.4,196.36,2.5499]
[1735668171773,19.99258032,196.46,196.35,2.5501]
[1735668171981,1.2754038,196.45,196.35,2.5501]
[1735668172283,1.2754038,196.44,196.35,2.5501]
[1735668172480,1.2754038,196.43,196.32,3.64]
[1735668172685,1.2754038,196.42,196.35,19.99258032]
[1735668172882,1.2754038,196.41,196.36,1.5861]
[1735668173083,2.5487,196.46,196.42,2.5492]
[1735668173279,1.5707,196.49,196.42,2.5492]
[1735668173280,1.27516293,196.45,196.42,2.5492]
[1735668173584,2.5482,196.5,196.45,2.5488]
[1735668173885,1.27493867,196.49,196.45,2.5488]
[1735668174086,1.27493867,196.48,196.45,2.5488]
[1735668174384,3.0247,196.54,196.45,2.5488]
[1735668174583,1.27480294,196.53,196.45,2.5488]
[1735668174780,1.27480294,196.52,196.4,3.64]
[1735668174980,1.27480294,196.51,196.4,3.64]
[1735668175283,1.27480294,196.5,196.4,3.64]
[1735668175484,3.0247,196.54,196.41,19.99258032]
[1735668175684,1.27476563,196.53,196.41,19.99258032]
[1735668175978,3.0247,196.54,196.47,2.5486]
[1735668176184,1.27455918,196.53,196.47,3.64]
[1735668176385,1.4561,196.54,196.47,3.64]
[1735668176578,3.0635,196.59,196.47,3.64]
[1735668176776,1.27454482,196.58,196.47,3.64]
[1735668176976,1.27454482,196.57,196.47,3.64]
[1735668177179,2.5477,196.54,196.48,2.5484]
[1735668177486,1.27454259,196.53,196.47,3.64]
[1735668177683,1.27452778,196.52,196.47,3.64]
[1735668177878,2.5475,196.55,196.51,2.548]
[1735668178277,1.5364,196.59,196.47,5.0829]
[1735668178480,1.27430288,196.58,196.47,5.0829]
[1735668178681,1.5364,196.59,196.47,5.0829]
[1735668178682,1.27430288,196.57,196.47,5.0829]
[1735668178879,1.27430288,196.56,196.47,5.0829]
[1735668179079,2.5474,196.56,196.51,2.548]
[1735668179590,1.27434368,196.55,196.47,5.0829]
[1735668179886,2.5475,196.55,196.5,2.5481]
[1735668180386,1.27440001,196.54,196.47,5.0829]
[1735668180587,1.5364,196.59,196.47,5.0829]
[1735668180788,2.5477,196.54,196.47,5.0829]
[1735668181189,1.5364,196.59,196.47,5.0829]
[1735668181492,1.27441532,196.58,196.47,5.0829]
[1735668181688,1.27441532,196.57,196.49,19.99258032]
[1735668181991,1.27441532,196.56,196.49,19.99258032]
[1735668182290,1.4433,196.65,196.49,19.99258032]
[1735668182482,1.2742836,196.64,196.49,19.99258032]
[1735668182686,2.5473,196.57,196.53,2.5478]
[1735668182885,1.4433,196.65,196.53,3.64]
[1735668183090,19.99258032,196.62,196.47,1.4429]
[1735668183292,2.548,196.51,196.47,3.64]
[1735668183490,19.99258032,196.62,196.47,3.64]
[1735668183692,1.27447874,196.61,196.47,23.63258032]
[1735668183985,19.99258032,196.62,196.47,23.63258032]
[1735668183986,1.27447874,196.6,196.47,23.63258032]
[1735668184193,1.27447874,196.59,196.47,23.63258032]
[1735668184392,1.27447874,196.58,196.47,23.63258032]
[1735668184689,2.5477,196.54,196.49,2.5482]
[1735668185090,19.99258032,196.62,196.47,23.63258032]
[1735668185290,2.5479,196.53,196.48,2.5484]
[1735668185491,19.99258032,196.62,196.47,23.63258032]
[1735668185692,1.27442927,196.61,196.47,23.63258032]
[1735668185892,1.27442927,196.6,196.47,23.63258032]
[1735668186088,1.27442927,196.59,196.46,2.9503]
[1735668186293,21.26700959,196.58,196.43,23.63258032]
[1735668186594,4.39572927,196.57,196.43,23.63258032]
[1735668186894,2.5487,196.47,196.43,23.63258032]
[1735668187595,5.1484,196.56,196.43,3.64]
[1735668187795,1.2748328,196.55,196.43,3.64]
[1735668187992,5.1484,196.56,196.43,3.64]
[1735668188190,1.2748328,196.55,196.43,3.64]
[1735668188393,1.2748328,196.54,196.43,23.63258032]
[1735668188593,5.1484,196.56,196.44,1.5091]
[1735668188594,1.2748328,196.53,196.44,1.5091]
[1735668188794,1.27468661,196.52,196.44,1.5091]
[1735668188996,1.27468661,196.51,196.44,1.5091]
[1735668189196,2.5479,196.53,196.44,4.058]
[1735668189396,1.27477075,196.52,196.44,1.5091]
[1735668189598,1.5084,196.56,196.44,1.5091]
[1735668189799,1.27463864,196.55,196.44,1.5091]
[1735668189998,2.5481,196.51,196.47,2.5485]
[1735668192710,1.5084,196.56,196.47,2.5485]
[1735668192711,2.5482,196.5,196.47,2.5485]
[1735668194309,2.5481,196.51,196.47,2.5485]
[1735668196313,1.5084,196.56,196.5,2.5481]
[1735668196505,1.27454954,196.55,196.5,3.64]
[1735668196710,16.93096896,196.63,196.5,3.64]
[1735668197013,2.5475,196.56,196.5,3.64]
[1735668197208,12.45326896,196.6,196.5,3.64]
[1735668197414,1.27437366,196.59,196.5,3.64]
[1735668197615,1.27437366,196.58,196.5,3.64]
[1735668197811,1.27437366,196.57,196.5,3.64]
[1735668198013,1.27437366,196.56,196.5,3.64]
[1735668198209,1.27437366,196.55,196.5,3.64]
[1735668198411,1.27462789,196.54,196.5,3.64]
[1735668198715,2.548,196.51,196.5,3.64]
[1735668199516,2.548,196.52,196.5,3.64]
[1735668199717,2.548,196.52,196.46,12.45326896]
[1735668199718,12.45326896,196.57,196.46,3.62]
[1735668200016,1.2747611,196.56,196.46,6.1687]
[1735668200214,1.2747611,196.55,196.46,6.1687]
[1735668200416,2.5482,196.5,196.47,2.5485]
[1735668201120,19.9288591,196.59,196.46,3.62]
[1735668201318,1.27471082,196.58,196.46,3.62]
[1735668201514,1.27471082,196.57,196.46,3.62]
[1735668201710,2.5485,196.48,196.44,4.058]
[1735668201916,5.0943,196.58,196.44,5.1291]
[1735668202109,21.4017591,196.55,196.44,3.62]
[1735668202315,2.5488,196.45,196.44,3.62]
[1735668202511,6.6048,196.54,196.41,1.5544]
[1735668202819,2.5495,196.4,196.39,3.62]
[1735668203215,6.6048,196.54,196.35,3.62]
[1735668203216,19.9288591,196.47,196.35,3.62]
[1735668203518,19.9288591,196.47,196.34,3.64]
[1735668203519,1.5168,196.46,196.34,3.64]
[1735668203720,2.79222452,196.46,196.34,3.64]
[1735668203913,2.5499,196.37,196.34,3.64]
[1735668204318,1.5156,196.45,196.34,3.64]